fUST/lending_fUST_20240613
["ID","MTS","AMOUNT","RATE_DAILY","PERIOD"]
[329303602,1718227846407,-651.45,0.00017534,2]
[329303603,1718227846417,-500.0,0.00017534,2]
[329303604,1718227846431,-500.0,0.00017534,2]
[329303605,1718227846445,-500.0,0.00017534,2]
[329303606,1718227846458,-585.57028773,0.00017534,2]
[329303607,1718227846471,-500.0,0.00017534,2]
[329303608,1718227846483,-500.0,0.00017534,2]
[329303610,1718227846495,-500.0,0.00017534,2]
[329303612,1718227846507,-500.0,0.00017534,2]
[329303613,1718227846520,-582.47,0.00017534,2]
[329303616,1718227846533,-500.0,0.00017534,2]
[329303620,1718227846546,-500.0,0.00017534,2]
[329303623,1718227846566,-500.0,0.00017534,2]
[329303627,1718227846584,-500.0,0.00017534,2]
[329303628,1718227846596,-500.0,0.00017534,2]
[329303631,1718227846609,-1321.67,0.00017534,2]
[329303632,1718227846621,-500.0,0.00017534,2]
[329303633,1718227846635,-500.0,0.00017534,2]
[329303634,1718227846649,-789.39,0.00017534,2]
[329303635,1718227846661,-500.0,0.00017534,2]
[329303636,1718227846679,-2844.51,0.00017534,2]
[329303637,1718227846692,-500.0,0.00017534,2]
[329303638,1718227846703,-500.0,0.00017534,2]
[329303639,1718227846716,-591.24,0.00017534,2]
[329303640,1718227846728,-550.28652042,0.00017534,2]
[329303641,1718227846740,-535.69,0.00017534,2]
[329303642,1718227846752,-718.05,0.00017534,2]
[329303643,1718227846765,-500.0,0.00017534,2]
[329303644,1718227846777,-500.0,0.00017534,2]
[329303645,1718227846788,-500.0,0.00017534,2]
[329303646,1718227846802,-7089.57,0.00017534,2]
[329303647,1718227846812,-2612.63,0.00017534,2]
[329303648,1718227846825,-500.0,0.00017534,2]
[329303649,1718227846837,-2665.0,0.00017534,2]
[329303650,1718227846848,-500.0,0.00017534,2]
[329303651,1718227846860,-500.0,0.00017534,2]
[329303652,1718227846872,-500.0,0.00017534,2]
[329303653,1718227846885,-500.0,0.00017534,2]
[329303654,1718227846897,-1362.4,0.00017534,2]
[329303655,1718227846910,-2146.47,0.00017534,2]
[329303656,1718227846922,-500.0,0.00017534,2]
[329303657,1718227846935,-750.31,0.00017534,2]
[329303658,1718227846948,-655.14,0.00017534,2]
[329303659,1718227846962,-354.32,0.00017534,2]
[329303660,1718227846976,-500.0,0.00017534,2]
[329303661,1718227846989,-500.0,0.00017534,2]
[329303662,1718227847001,-500.0,0.00017534,2]
[329303663,1718227847012,-3481.53,0.00017534,2]
[329303664,1718227847023,-500.0,0.00017534,2]
[329303665,1718227847034,-500.0,0.00017534,2]
[329303666,1718227847045,-613.81,0.00017534,2]
[329303667,1718227847057,-505.32,0.00017534,2]
[329303668,1718227847070,-500.0,0.00017534,2]
[329303669,1718227847083,-815.68,0.00017534,2]
[329303670,1718227847095,-621.83,0.00017534,2]
[329303671,1718227847110,-858.41,0.00017534,2]
[329303672,1718227847121,-500.0,0.00017534,2]
[329303673,1718227847133,-500.0,0.00017534,2]
[329303674,1718227847145,-500.0,0.00017534,2]
[329303675,1718227847160,-1501.09,0.00017534,2]
[329303676,1718227847173,-500.0,0.00017534,2]
[329303677,1718227847185,-538.2,0.00017534,2]
[329303678,1718227847200,-553.12,0.00017534,2]
[329303679,1718227847213,-500.0,0.00017534,2]
[329303680,1718227847227,-500.0,0.00017534,2]
[329303681,1718227847240,-203.08,0.00017534,2]
[329303682,1718227847251,-500.0,0.00017808,2]
[329303683,1718227847263,-500.0,0.00017808,2]
[329303684,1718227847274,-500.0,0.00017808,2]
[329303685,1718227847287,-500.0,0.00017808,2]
[329303686,1718227847299,-519.69,0.00017808,2]
[329303687,1718227847311,-500.0,0.00017808,2]
[329303688,1718227847326,-500.0,0.00017808,2]
[329303689,1718227847338,-651.45,0.00017808,2]
[329303690,1718227847350,-360.57090322,0.00017808,2]
[329303691,1718227847361,-500.0,0.00017808,2]
[329303692,1718227847372,-500.0,0.00017808,2]
[329303693,1718227847384,-569.36258132,0.00017808,2]
[329303694,1718227847395,-582.47,0.00017808,2]
[329303695,1718227847406,-500.0,0.00017808,2]
[329303696,1718227847417,-500.0,0.00017808,2]
[329303697,1718227847429,-500.0,0.00017808,2]
[329303698,1718227847442,-500.0,0.00017808,2]
[329303699,1718227847456,-251.66,0.00017808,2]
[329303700,1718227847467,-1321.67,0.00017808,2]
[329303701,1718227847479,-500.0,0.00017808,2]
[329303702,1718227847491,-789.39,0.00017808,2]
[329303703,1718227847503,-301.16,0.00017808,2]
[329303704,1718227847515,-2844.51,0.00017808,2]
[329303705,1718227847526,-185.52178066,0.00017808,2]
[329303706,1718227847537,-500.0,0.00017808,2]
[329303707,1718227847547,-591.24,0.00017808,2]
[329303708,1718227847575,-535.69,0.00017808,2]
[329303709,1718227847587,-718.05,0.00017808,2]
[329303710,1718227847599,-561.18764391,0.00017808,2]
[329303711,1718227847612,-500.0,0.00017808,2]
[329303712,1718227847623,-433.06,0.00017808,2]
[329303713,1718227847635,-7089.57,0.00017808,2]
[329303714,1718227847646,-2612.63,0.00017808,2]
[329303715,1718227847657,-500.0,0.00017808,2]
[329303716,1718227847669,-2665.0,0.00017808,2]
[329303717,1718227847683,-500.0,0.00017808,2]
[329303718,1718227847696,-500.0,0.00017808,2]
[329303719,1718227847707,-1362.4,0.00017808,2]
[329303720,1718227847719,-2146.47,0.00017808,2]
[329303721,1718227847731,-510.85589307,0.00017808,2]
[329303722,1718227847742,-750.31,0.00017808,2]
[329303723,1718227847754,-655.14,0.00017808,2]
[329303724,1718227847765,-378.08894626,0.00017808,2]
[329303725,1718227847777,-500.0,0.00017808,2]
[329303726,1718227847789,-500.0,0.00017808,2]
[329303727,1718227847801,-3481.53,0.00017808,2]
[329303728,1718227847813,-500.0,0.00017808,2]
[329303729,1718227847824,-500.0,0.00017808,2]
[329303730,1718227847835,-613.81,0.00017808,2]
[329303731,1718227847847,-505.32,0.00017808,2]
[329303732,1718227847858,-500.0,0.00017808,2]
[329303733,1718227847868,-815.68,0.00017808,2]
[329303734,1718227847880,-621.83,0.00017808,2]
[329303735,1718227847891,-858.41,0.00017808,2]
[329303736,1718227847902,-500.0,0.00017808,2]
[329303737,1718227847914,-500.0,0.00017808,2]
[329303738,1718227847925,-500.0,0.00017808,2]
[329303739,1718227847936,-1501.09,0.00017808,2]
[329303740,1718227847947,-500.0,0.00017808,2]
[329303741,1718227847958,-538.2,0.00017808,2]
[329303742,1718227847969,-553.12,0.00017808,2]
[329303743,1718227847980,-558.44,0.00017808,2]
[329303744,1718227847991,-500.0,0.00017808,2]
[329303746,1718227848002,-1355.61945113,0.00018,2]
[329303748,1718227848014,-2765.44251206,0.00018,2]
[329303750,1718227848025,-31895.25799427,0.00018,2]
[329303752,1718227848037,-476.69963654,0.00018,2]
[329303754,1718227848048,-164.58541502,0.00018081,2]
[329303755,1718227848058,-420.0,0.00018081,2]
[329303756,1718227848069,-500.0,0.00018082,2]
[329303757,1718227848082,-500.0,0.00018082,2]
[329303758,1718227848094,-500.0,0.00018082,2]
[329303759,1718227848105,-500.0,0.00018082,2]
[329303760,1718227848118,-519.69,0.00018082,2]
[329303761,1718227848130,-500.0,0.00018082,2]
[329303762,1718227848142,-500.0,0.00018082,2]
[329303763,1718227848156,-651.45,0.00018082,2]
[329303764,1718227848169,-500.0,0.00018082,2]
[329303765,1718227848179,-500.0,0.00018082,2]
[329303766,1718227848190,-582.47,0.00018082,2]
[329303767,1718227848203,-500.0,0.00018082,2]
[329303768,1718227848214,-500.0,0.00018082,2]
[329303769,1718227848227,-500.0,0.00018082,2]
[329303770,1718227848401,-500.0,0.00018082,2]
[329303771,1718227848415,-1321.67,0.00018082,2]
[329303772,1718227848427,-500.0,0.00018082,2]
[329303773,1718227848440,-789.39,0.00018082,2]
[329303774,1718227848450,-2844.51,0.00018082,2]
[329303775,1718227848460,-500.0,0.00018082,2]
[329303776,1718227848471,-591.24,0.00018082,2]
[329303777,1718227848480,-535.69,0.00018082,2]
[329303778,1718227848490,-718.05,0.00018082,2]
[329303779,1718227848500,-500.0,0.00018082,2]
[329303780,1718227848510,-7089.57,0.00018082,2]
[329303781,1718227848519,-2612.63,0.00018082,2]
[329303782,1718227848529,-2665.0,0.00018082,2]
[329303783,1718227848538,-500.0,0.00018082,2]
[329303784,1718227848549,-1362.4,0.00018082,2]
[329303785,1718227848569,-2146.47,0.00018082,2]
[329303786,1718227848582,-750.31,0.00018082,2]
[329303787,1718227848593,-655.14,0.00018082,2]
[329303788,1718227848603,-500.0,0.00018082,2]
[329303789,1718227848614,-3481.53,0.00018082,2]
[329303790,1718227848624,-500.0,0.00018082,2]
[329303791,1718227848634,-500.0,0.00018082,2]
[329303792,1718227848645,-613.81,0.00018082,2]
[329303793,1718227848655,-505.32,0.00018082,2]
[329303794,1718227848666,-500.0,0.00018082,2]
[329303795,1718227848676,-815.68,0.00018082,2]
[329303796,1718227848687,-621.83,0.00018082,2]
[329303797,1718227848697,-858.41,0.00018082,2]
[329303798,1718227848707,-500.0,0.00018082,2]
[329303799,1718227848717,-500.0,0.00018082,2]
[329303800,1718227848727,-500.0,0.00018082,2]
[329303801,1718227848738,-1501.09,0.00018082,2]
[329303802,1718227848748,-538.2,0.00018082,2]
[329303803,1718227848759,-553.12,0.00018082,2]
[329303804,1718227848769,-611.1136572,0.00018082,2]
[329303805,1718227848779,-500.0,0.00018356,2]
[329303806,1718227848790,-500.0,0.00018356,2]
[329303807,1718227848801,-500.0,0.00018356,2]
[329303808,1718227848813,-200.66772711,0.00018356,2]
[329303809,1718227848824,-519.69,0.00018356,2]
[329303810,1718227848834,-500.0,0.00018356,2]
[329303811,1718227848845,-500.0,0.00018356,2]
[329303812,1718227848855,-651.45,0.00018356,2]
[329303813,1718227848866,-500.0,0.00018356,2]
[329303814,1718227848876,-500.0,0.00018356,2]
[329303815,1718227848886,-582.47,0.00018356,2]
[329303816,1718227848897,-500.0,0.00018356,2]
[329303817,1718227848906,-500.0,0.00018356,2]
[329303818,1718227848917,-500.0,0.00018356,2]
[329303819,1718227848929,-500.0,0.00018356,2]
[329303820,1718227848939,-1321.67,0.00018356,2]
[329303821,1718227848949,-789.39,0.00018356,2]
[329303822,1718227848961,-2844.51,0.00018356,2]
[329303823,1718227848972,-500.0,0.00018356,2]
[329303824,1718227848982,-591.24,0.00018356,2]
[329303825,1718227848993,-535.69,0.00018356,2]
[329303826,1718227849002,-718.05,0.00018356,2]
[329303827,1718227849013,-362.55816986,0.00018356,2]
[329303828,1718227849023,-7089.57,0.00018356,2]
[329303829,1718227849033,-2612.63,0.00018356,2]
[329303830,1718227849043,-2665.0,0.00018356,2]
[329303831,1718227849053,-500.0,0.00018356,2]
[329303832,1718227849064,-1362.4,0.00018356,2]
[329303833,1718227849076,-2146.47,0.00018356,2]
[329303834,1718227849087,-750.31,0.00018356,2]
[329303835,1718227849097,-655.14,0.00018356,2]
[329303836,1718227849107,-309.92,0.00018356,2]
[329303837,1718227849122,-3481.53,0.00018356,2]
[329303838,1718227849133,-233.44,0.00018356,2]
[329303839,1718227849144,-500.0,0.00018356,2]
[329303840,1718227849157,-613.81,0.00018356,2]
[329303841,1718227849168,-505.32,0.00018356,2]
[329303842,1718227849178,-497.18,0.00018356,2]
[329303843,1718227849188,-815.68,0.00018356,2]
[329303844,1718227849199,-621.83,0.00018356,2]
[329303845,1718227849209,-858.41,0.00018356,2]
[329303846,1718227849220,-382.99,0.00018356,2]
[329303847,1718227849230,-500.0,0.00018356,2]
[329303848,1718227849243,-162.98218717,0.00018356,2]
[329303849,1718227849946,-500.0,0.00016438,2]
[329303850,1718227849956,-500.0,0.00016438,2]
[329303851,1718227849967,-500.0,0.00016438,2]
[329303852,1718227849977,-500.0,0.00016438,2]
[329303853,1718227849988,-500.0,0.00016438,2]
[329303854,1718227849998,-1136.32,0.00016712,2]
[329303855,1718227850008,-500.0,0.00016712,2]
[329303856,1718227850017,-322.50051869,0.00016712,2]
[329303857,1718227850028,-1136.32,0.00016986,2]
[329303858,1718227850039,-500.0,0.00016986,2]
[329303859,1718227850049,-1136.32,0.0001726,2]
[329303860,1718227850060,-1136.32,0.00017534,2]
[329303861,1718227850070,-505.62,0.00017807,2]
[329303862,1718227850082,-1136.32,0.00017808,2]
[329303863,1718227850092,-505.62,0.00017999,2]
[329303864,1718227850104,-505.62,0.00018081,2]
[329303865,1718227850113,-1136.32,0.00018082,2]
[329303866,1718227850124,-505.62,0.00018355,2]
[329303867,1718227850135,-337.01781283,0.00018356,2]
[329303868,1718227850145,-1501.09,0.00018356,2]
[329303869,1718227850158,-538.2,0.00018356,2]
[329303870,1718227850168,-553.12,0.00018356,2]
[329303871,1718227850178,-1136.32,0.00018356,2]
[329303872,1718227850188,-505.62,0.00018513,2]
[329303873,1718227850199,-505.62,0.00018513,2]
[329303874,1718227850210,-505.62,0.00018513,2]
[329303875,1718227850220,-166.666666,0.00018575,2]
[329303876,1718227850237,-792.79352193,0.00018614,2]
[329303877,1718227850247,-11746.27738076,0.00018614,2]
[329303878,1718227850257,-505.62,0.00018629,2]
[329303879,1718227850267,-500.0,0.0001863,2]
[329303880,1718227850278,-500.0,0.0001863,2]
[329303881,1718227850288,-500.0,0.0001863,2]
[329303882,1718227850299,-519.69,0.0001863,2]
[329303883,1718227850309,-500.0,0.0001863,2]
[329303884,1718227850318,-203.54409976,0.0001863,2]
[329303885,1718227850338,-296.45590024,0.0001863,2]
[329303886,1718227850349,-651.45,0.0001863,2]
[329303887,1718227850359,-531.28434109,0.0001863,2]
[329303888,1718227850369,-500.0,0.0001863,2]
[329303889,1718227850379,-582.47,0.0001863,2]
[329303890,1718227850389,-500.0,0.0001863,2]
[329303891,1718227850398,-500.0,0.0001863,2]
[329303892,1718227850408,-500.0,0.0001863,2]
[329303893,1718227850419,-1321.67,0.0001863,2]
[329303894,1718227850429,-789.39,0.0001863,2]
[329303895,1718227850438,-2844.51,0.0001863,2]
[329303896,1718227850449,-591.24,0.0001863,2]
[329303897,1718227850459,-535.69,0.0001863,2]
[329303898,1718227850469,-718.05,0.0001863,2]
[329303899,1718227850480,-7089.57,0.0001863,2]
[329303900,1718227850492,-2612.63,0.0001863,2]
[329303901,1718227850502,-2665.0,0.0001863,2]
[329303902,1718227850512,-500.0,0.0001863,2]
[329303903,1718227850522,-1362.4,0.0001863,2]
[329303904,1718227850532,-2146.47,0.0001863,2]
[329303905,1718227850542,-750.31,0.0001863,2]
[329303906,1718227850552,-655.14,0.0001863,2]
[329303907,1718227850575,-3481.53,0.0001863,2]
[329303908,1718227850585,-500.0,0.0001863,2]
[329303909,1718227850594,-613.81,0.0001863,2]
[329303910,1718227850604,-505.32,0.0001863,2]
[329303911,1718227850615,-815.68,0.0001863,2]
[329303912,1718227850625,-621.83,0.0001863,2]
[329303913,1718227850635,-858.41,0.0001863,2]
[329303914,1718227850646,-500.0,0.0001863,2]
[329303915,1718227850656,-1501.09,0.0001863,2]
[329303916,1718227850666,-538.2,0.0001863,2]
[329303917,1718227850677,-553.12,0.0001863,2]
[329303918,1718227850688,-1136.32,0.0001863,2]
[329303919,1718227850698,-250.0,0.0001863,2]
[329303920,1718227850708,-1802.22342746,0.000189,2]
[329303921,1718227850720,-5042.07906608,0.000189,2]
[329303922,1718227850730,-505.62,0.00018903,2]
[329303923,1718227850741,-500.0,0.00018904,2]
[329303924,1718227850752,-500.0,0.00018904,2]
[329303925,1718227850763,-500.0,0.00018904,2]
[329303926,1718227850774,-519.69,0.00018904,2]
[329303927,1718227850785,-500.0,0.00018904,2]
[329303928,1718227850795,-500.0,0.00018904,2]
[329303929,1718227850806,-651.45,0.00018904,2]
[329303930,1718227850815,-500.0,0.00018904,2]
[329303931,1718227850827,-582.47,0.00018904,2]
[329303932,1718227850837,-500.0,0.00018904,2]
[329303933,1718227850847,-500.0,0.00018904,2]
[329303934,1718227850857,-500.0,0.00018904,2]
[329303935,1718227850869,-1321.67,0.00018904,2]
[329303936,1718227850879,-789.39,0.00018904,2]
[329303937,1718227850889,-2844.51,0.00018904,2]
[329303938,1718227850899,-591.24,0.00018904,2]
[329303939,1718227850910,-535.69,0.00018904,2]
[329303940,1718227850946,-718.05,0.00018904,2]
[329303941,1718227850957,-1612.22513124,0.00018904,2]
[329303942,1718227850973,-5477.34486876,0.00018904,2]
[329303943,1718227850983,-2612.63,0.00018904,2]
[329303944,1718227850994,-620.25693545,0.00018904,2]
[329303945,1718227851043,-304.68418034,0.00016437,2]
[329303946,1718227851054,-471.86868819,0.00018904,2]
[329303949,1718228092730,264.7819109,9.999e-05,2]
[329303950,1718228092765,230.25111994,9.999e-05,2]
[329303954,1718228150803,39.30856433,9.999e-05,2]
[329303955,1718228150849,269.55968427,9.999e-05,2]
[329303956,1718228150893,269.55968427,9.999e-05,2]
[329303957,1718228150953,161.01292292,9.999e-05,2]
[329303958,1718228151015,18576.48716585,9.999e-05,2]
[329303959,1718228170794,16152.98520468,9.999e-05,2]
[329303969,1718228596426,927.77008751,9.999e-05,2]
[329303970,1718228961686,-225.98556896,0.00010959,2]
[329303971,1718228972249,-294.249162,0.00010959,2]
[329303972,1718228972304,-281.93526904,0.00010959,2]
[329303973,1718228972339,-12.31389296,0.00015,2]
[329303974,1718228997187,-306.01912848,0.00015,2]
[329303975,1718228997270,-266.05545469,0.00015,2]
[329304071,1718229040492,-1.35153517,0.00015,2]
[329304072,1718229040503,-1993.33045247,0.00015,2]
[329304073,1718229040514,-475.07290009,0.00016338,2]
[329304074,1718229040526,-2000.0,0.00016338,2]
[329304075,1718229040538,-300.0,0.00016433,2]
[329304076,1718229040559,-300.0,0.00016433,2]
[329304077,1718229040571,-774.62239813,0.00016434,2]
[329304078,1718229040585,-528.35637366,0.00016434,2]
[329304079,1718229040598,-155.20651783,0.00016434,2]
[329304080,1718229040611,-164.68563506,0.00016436,2]
[329304081,1718229040624,-317.32399469,0.00016436,2]
[329304082,1718229040641,-1281.31823399,0.00016436,2]
[329304083,1718229040654,-50201.31855158,0.00016436,2]
[329304084,1718229040668,-309.9070279,0.00016436,2]
[329304085,1718229040681,-760.02032253,0.00016436,2]
[329304086,1718229040696,-202.08616994,0.00016436,2]
[329304087,1718229040711,-181.91947349,0.00016436,2]
[329304088,1718229040724,-10539.6485585,0.00016436,2]
[329304089,1718229040738,-203.65771038,0.00016436,2]
[329304090,1718229040748,-500.0,0.00016438,2]
[329304091,1718229040759,-500.0,0.00016438,2]
[329304092,1718229040772,-500.0,0.00016438,2]
[329304093,1718229040782,-501.38610209,0.00016438,2]
[329304094,1718229040793,-500.0,0.00016438,2]
[329304095,1718229040803,-500.0,0.00016438,2]
[329304096,1718229040814,-500.0,0.00016438,2]
[329304097,1718229040824,-500.0,0.00016438,2]
[329304098,1718229040835,-500.0,0.00016438,2]
[329304099,1718229040845,-500.0,0.00016438,2]
[329304100,1718229040856,-500.0,0.00016438,2]
[329304101,1718229040866,-364.57345289,0.00016438,2]
[329304102,1718229040876,-500.0,0.00016438,2]
[329304103,1718229040887,-500.0,0.00016438,2]
[329304104,1718229040897,-500.0,0.00016438,2]
[329304105,1718229040908,-290.37787744,0.00016438,2]
[329304106,1718229040919,-500.0,0.00016438,2]
[329304107,1718229040929,-517.48761169,0.00016438,2]
[329304108,1718229040940,-500.0,0.00016438,2]
[329304109,1718229040951,-500.0,0.00016438,2]
[329304110,1718229040962,-500.85924365,0.00016438,2]
[329304111,1718229040972,-500.0,0.00016438,2]
[329304112,1718229040983,-500.0,0.00016438,2]
[329304113,1718229041007,-258.09980401,0.00016438,2]
[329304114,1718229041019,-525.85647895,0.00016438,2]
[329304115,1718229041031,-470.83296756,0.00016438,2]
[329304116,1718229041041,-500.0,0.00016438,2]
[329304117,1718229041051,-317.09866361,0.00016438,2]
[329304118,1718229041062,-500.0,0.00016438,2]
[329304119,1718229041072,-500.0,0.00016438,2]
[329304120,1718229041082,-500.0,0.00016438,2]
[329304121,1718229041093,-500.0,0.00016438,2]
[329304122,1718229041103,-500.0,0.00016438,2]
[329304123,1718229041114,-500.0,0.00016438,2]
[329304124,1718229041126,-500.0,0.00016438,2]
[329304125,1718229041137,-346.06935248,0.00016438,2]
[329304126,1718229041148,-425.87217413,0.00016438,2]
[329304127,1718229041160,-500.0,0.00016438,2]
[329304128,1718229041171,-500.0,0.00016438,2]
[329304129,1718229041181,-500.0,0.00016438,2]
[329304130,1718229041192,-500.0,0.00016438,2]
[329304131,1718229041202,-500.0,0.00016438,2]
[329304132,1718229041213,-501.42818865,0.00016438,2]
[329304133,1718229041224,-500.0,0.00016438,2]
[329304134,1718229041235,-500.0,0.00016438,2]
[329304135,1718229041246,-500.0,0.00016438,2]
[329304136,1718229041256,-500.0,0.00016438,2]
[329304137,1718229041266,-500.0,0.00016438,2]
[329304138,1718229041277,-500.0,0.00016438,2]
[329304139,1718229041287,-500.0,0.00016438,2]
[329304140,1718229041298,-500.0,0.00016438,2]
[329304141,1718229041308,-686.18,0.00016438,2]
[329304142,1718229041318,-500.0,0.00016438,2]
[329304143,1718229041329,-523.25687373,0.00016438,2]
[329304144,1718229041339,-500.0,0.00016438,2]
[329304145,1718229041349,-500.0,0.00016438,2]
[329304146,1718229041358,-500.0,0.00016438,2]
[329304147,1718229041369,-500.0,0.00016438,2]
[329304148,1718229041379,-500.0,0.00016438,2]
[329304149,1718229041389,-500.0,0.00016438,2]
[329304150,1718229041399,-500.0,0.00016438,2]
[329304151,1718229041410,-650.65,0.00016438,2]
[329304152,1718229041420,-500.0,0.00016438,2]
[329304153,1718229041430,-500.0,0.00016438,2]
[329304154,1718229041440,-500.0,0.00016438,2]
[329304155,1718229041450,-500.0,0.00016438,2]
[329304156,1718229041461,-500.0,0.00016438,2]
[329304157,1718229041470,-500.0,0.00016438,2]
[329304158,1718229041481,-500.0,0.00016438,2]
[329304159,1718229041491,-500.0,0.00016438,2]
[329304160,1718229041689,-500.0,0.00016438,2]
[329304161,1718229041705,-500.0,0.00016438,2]
[329304162,1718229041717,-500.0,0.00016438,2]
[329304163,1718229041728,-500.0,0.00016438,2]
[329304164,1718229041739,-500.0,0.00016438,2]
[329304165,1718229041751,-500.0,0.00016438,2]
[329304166,1718229041766,-500.0,0.00016438,2]
[329304167,1718229041781,-500.0,0.00016438,2]
[329304168,1718229041792,-500.0,0.00016438,2]
[329304169,1718229041803,-500.0,0.00016438,2]
[329304170,1718229041815,-500.0,0.00016438,2]
[329304171,1718229041826,-500.0,0.00016438,2]
[329304172,1718229041837,-500.0,0.00016438,2]
[329304173,1718229041848,-500.0,0.00016438,2]
[329304174,1718229041858,-500.0,0.00016438,2]
[329304175,1718229041869,-500.0,0.00016438,2]
[329304176,1718229041880,-500.0,0.00016438,2]
[329304177,1718229041890,-528.81,0.00016438,2]
[329304178,1718229041908,-571.77,0.00016438,2]
[329304179,1718229041918,-500.0,0.00016438,4]
[329304180,1718229041929,-500.0,0.00016438,2]
[329304181,1718229041940,-500.0,0.00016438,2]
[329304182,1718229041951,-500.0,0.00016438,2]
[329304183,1718229041964,-500.0,0.00016438,2]
[329304184,1718229041979,-500.0,0.00016438,2]
[329304185,1718229041990,-500.0,0.00016438,2]
[329304186,1718229042024,-500.0,0.00016438,2]
[329304187,1718229042035,-500.0,0.00016438,2]
[329304188,1718229042045,-500.0,0.00016438,2]
[329304189,1718229042056,-500.0,0.00016438,2]
[329304190,1718229042066,-250.0,0.00016438,2]
[329304191,1718229042077,-500.0,0.00016438,2]
[329304192,1718229042087,-500.0,0.00016438,2]
[329304193,1718229042097,-500.0,0.00016438,2]
[329304194,1718229042107,-500.0,0.00016438,2]
[329304195,1718229042117,-500.0,0.00016438,2]
[329304196,1718229042127,-500.0,0.00016438,2]
[329304197,1718229042137,-500.0,0.00016438,2]
[329304198,1718229042147,-500.0,0.00016438,2]
[329304199,1718229042158,-500.0,0.00016438,2]
[329304200,1718229042168,-500.0,0.00016438,2]
[329304201,1718229042178,-500.0,0.00016438,2]
[329304202,1718229042189,-500.0,0.00016438,2]
[329304203,1718229042200,-500.0,0.00016438,2]
[329304204,1718229042214,-500.0,0.00016438,2]
[329304205,1718229042225,-500.0,0.00016438,2]
[329304206,1718229042235,-500.0,0.00016438,2]
[329304207,1718229042245,-500.0,0.00016438,2]
[329304208,1718229042256,-500.0,0.00016438,2]
[329304209,1718229042268,-399.08780266,0.00016438,2]
[329304210,1718229042280,-500.0,0.00016438,2]
[329304211,1718229042292,-500.0,0.00016438,2]
[329304212,1718229042303,-500.0,0.00016438,2]
[329304213,1718229042314,-500.0,0.00016438,2]
[329304214,1718229042327,-500.0,0.00016438,2]
[329304215,1718229042342,-500.0,0.00016438,2]
[329304216,1718229042368,-500.0,0.00016438,2]
[329304217,1718229042384,-506.25333713,0.00016438,2]
[329304218,1718229042398,-500.0,0.00016438,2]
[329304219,1718229042409,-500.0,0.00016438,2]
[329304221,1718229042421,-500.0,0.00016438,2]
[329304222,1718229042434,-589.52750579,0.00016438,2]
[329304223,1718229042450,-500.0,0.00016438,2]
[329304224,1718229042462,-500.0,0.00016438,2]
[329304225,1718229042473,-500.0,0.00016438,2]
[329304226,1718229042487,-672.08,0.00016438,2]
[329304227,1718229042511,-500.0,0.00016438,2]
[329304228,1718229042525,-259.97692014,0.00016438,2]
[329304229,1718229042562,-500.0,0.00016438,2]
[329304230,1718229042595,-502.89719724,0.00016438,2]